[Event "Betsys MČR v online bleskovém šachu 2021"]
[Site "Chess.com"]
[Date "2021.04.17"]
[Round "6"]
[White "kalcs"]
[Black "pohoda1966"]
[Result "1-0"]
[WhiteElo "2079"]
[BlackElo "1732"]
[TimeControl "180+1"]
[EndTime "9:56:29 PDT"]
[Termination "Uživatel kalcs zvítězil matem"]

1. e4 {[%clk 0:03:00.1]} 1... e6 {[%clk 0:02:56.8]} 2. d4 {[%clk 0:02:59.5]}
2... d5 {[%clk 0:02:56.2]} 3. e5 {[%clk 0:02:57.2]} 3... c5 {[%clk 0:02:55.1]}
4. c3 {[%clk 0:02:57]} 4... Nc6 {[%clk 0:02:50.5]} 5. Nf3 {[%clk 0:02:56.8]}
5... Qb6 {[%clk 0:02:50.1]} 6. Be2 {[%clk 0:02:43]} 6... Nge7 {[%clk 0:02:47.8]}
7. O-O {[%clk 0:02:42.5]} 7... cxd4 {[%clk 0:02:45.1]} 8. cxd4 {[%clk
0:02:41.3]} 8... Nf5 {[%clk 0:02:45]} 9. Nc3 {[%clk 0:02:23.6]} 9... Nfxd4
{[%clk 0:02:41.5]} 10. Nxd4 {[%clk 0:02:19.1]} 10... Qxd4 {[%clk 0:02:40.3]} 11.
Nb5 {[%clk 0:02:01.8]} 11... Qb6 {[%clk 0:02:23.8]} 12. Be3 {[%clk 0:01:55.7]}
12... Qd8 {[%clk 0:02:11.2]} 13. Bf4 {[%clk 0:01:25.2]} 13... Bc5 {[%clk
0:02:04.8]} 14. Rc1 {[%clk 0:01:17.7]} 14... Be7 {[%clk 0:01:50.7]} 15. a3
{[%clk 0:01:16.5]} 15... O-O {[%clk 0:01:50]} 16. Bd3 {[%clk 0:01:10.2]} 16...
a6 {[%clk 0:01:49.7]} 17. Nc3 {[%clk 0:01:08.3]} 17... h6 {[%clk 0:01:44.2]} 18.
Bb1 {[%clk 0:00:45.1]} 18... Bg5 {[%clk 0:01:29.2]} 19. Qd3 {[%clk 0:00:43.9]}
19... g6 {[%clk 0:01:28.7]} 20. Bg3 {[%clk 0:00:42.3]} 20... Kg7 {[%clk
0:01:20.4]} 21. b4 {[%clk 0:00:19.8]} 21... f5 {[%clk 0:01:19.1]} 22. exf6+
{[%clk 0:00:18.7]} 22... Qxf6 {[%clk 0:01:17]} 23. Rfe1 {[%clk 0:00:15.9]} 23...
Bxc1 {[%clk 0:01:15.5]} 24. Rxc1 {[%clk 0:00:12]} 24... Bd7 {[%clk 0:01:10.5]}
25. Na4 {[%clk 0:00:11.6]} 25... Ne5 {[%clk 0:01:00]} 26. Bxe5 {[%clk
0:00:03.5]} 26... Qxe5 {[%clk 0:00:58.2]} 27. Qxg6+ {[%clk 0:00:02.7]} 27... Kh8
{[%clk 0:00:58.4]} 28. Qh7# {[%clk 0:00:02.8]} 1-0

[Event "Betsys MČR v online bleskovém šachu 2021"]
[Site "Chess.com"]
[Date "2021.04.17"]
[Round "6"]
[White "dzerenyss"]
[Black "ZdenekRomanek"]
[Result "0-1"]
[WhiteElo "1106"]
[BlackElo "1591"]
[TimeControl "180+1"]
[EndTime "9:56:29 PDT"]
[Termination "Uživatel ZdenekRomanek zvítězil na čas"]

1. e4 {[%clk 0:02:56.7]} 1... e6 {[%clk 0:02:59.3]} 2. Nf3 {[%clk 0:02:54.4]}
2... d5 {[%clk 0:02:58.7]} 3. exd5 {[%clk 0:02:53.5]} 3... exd5 {[%clk 0:02:58]}
4. Nc3 {[%clk 0:02:50.1]} 4... Nf6 {[%clk 0:02:56.5]} 5. d4 {[%clk 0:02:48.7]}
5... c6 {[%clk 0:02:52.6]} 6. Bg5 {[%clk 0:02:45.9]} 6... Bd6 {[%clk 0:02:49.4]}
7. Bd3 {[%clk 0:02:35.7]} 7... O-O {[%clk 0:02:48.3]} 8. O-O {[%clk 0:02:33.9]}
8... Nbd7 {[%clk 0:02:45.2]} 9. Re1 {[%clk 0:02:25.7]} 9... Re8 {[%clk
0:02:37.1]} 10. Rxe8+ {[%clk 0:02:16.2]} 10... Qxe8 {[%clk 0:02:35.2]} 11. Qe2
{[%clk 0:02:04.4]} 11... Qxe2 {[%clk 0:02:30.7]} 12. Nxe2 {[%clk 0:02:02.7]}
12... Ne4 {[%clk 0:02:26]} 13. Bxe4 {[%clk 0:01:52.7]} 13... dxe4 {[%clk
0:02:25]} 14. Nd2 {[%clk 0:01:42.1]} 14... f5 {[%clk 0:02:21.6]} 15. Ng3 {[%clk
0:01:17.8]} 15... Nb6 {[%clk 0:02:10.7]} 16. Re1 {[%clk 0:00:59.6]} 16... h6
{[%clk 0:02:05.8]} 17. Be3 {[%clk 0:00:53.2]} 17... f4 {[%clk 0:01:57.5]} 18. c4
{[%clk 0:00:31.7]} 18... fxe3 {[%clk 0:01:51.3]} 19. Rxe3 {[%clk 0:00:27.7]}
19... Bxg3 {[%clk 0:01:37.6]} 20. hxg3 {[%clk 0:00:23.8]} 20... Bf5 {[%clk
0:01:35]} 21. Nxe4 {[%clk 0:00:19]} 21... Nxc4 {[%clk 0:01:26.2]} 22. Nc3 {[%clk
0:00:13.7]} 22... Nxe3 {[%clk 0:01:24.9]} 23. fxe3 {[%clk 0:00:12.9]} 23... Re8
{[%clk 0:01:19.9]} 24. Kf2 {[%clk 0:00:10.8]} 24... a5 {[%clk 0:01:12.6]} 25. a3
{[%clk 0:00:05.3]} 25... Bg4 {[%clk 0:01:09.9]} 26. b4 {[%clk 0:00:03.2]} 26...
axb4 {[%clk 0:01:08.3]} 27. axb4 {[%clk 0:00:02.5]} 27... Ra8 {[%clk 0:01:03.7]}
0-1

[Event "Betsys MČR v online bleskovém šachu 2021"]
[Site "Chess.com"]
[Date "2021.04.17"]
[Round "6"]
[White "masodj"]
[Black "pburak"]
[Result "1-0"]
[WhiteElo "1732"]
[BlackElo "1193"]
[TimeControl "180+1"]
[EndTime "9:56:30 PDT"]
[Termination "Uživatel masodj zvítězil po vzdání soupeře"]

1. e4 {[%clk 0:03:00.9]} 1... e5 {[%clk 0:02:59.1]} 2. Nf3 {[%clk 0:02:59.9]}
2... Nc6 {[%clk 0:02:58.3]} 3. Bc4 {[%clk 0:02:58.5]} 3... Bc5 {[%clk
0:02:57.1]} 4. b4 {[%clk 0:02:57.6]} 4... Bxb4 {[%clk 0:02:55.5]} 5. c3 {[%clk
0:02:57.5]} 5... Be7 {[%clk 0:02:51.2]} 6. d4 {[%clk 0:02:56.9]} 6... exd4
{[%clk 0:02:39.4]} 7. cxd4 {[%clk 0:02:53.3]} 7... d5 {[%clk 0:02:37.4]} 8. Bxd5
{[%clk 0:02:49.3]} 8... Be6 {[%clk 0:02:26.3]} 9. Bxe6 {[%clk 0:02:37.3]} 9...
fxe6 {[%clk 0:02:25.1]} 10. O-O {[%clk 0:02:30.4]} 10... Qd7 {[%clk 0:02:20.2]}
11. d5 {[%clk 0:02:21.6]} 11... Na5 {[%clk 0:01:59.9]} 12. Bb2 {[%clk
0:02:14.1]} 12... Bf6 {[%clk 0:01:37.9]} 13. e5 {[%clk 0:02:03.4]} 13... Be7
{[%clk 0:01:36.2]} 14. dxe6 {[%clk 0:02:00.8]} 14... Qxe6 {[%clk 0:01:35.1]} 15.
Qa4+ {[%clk 0:01:54.8]} 15... Nc6 {[%clk 0:01:29.9]} 16. Rd1 {[%clk 0:01:42.3]}
16... Nh6 {[%clk 0:01:22.6]} 17. Nc3 {[%clk 0:01:31.5]} 17... O-O {[%clk
0:01:16.5]} 18. Qb3 {[%clk 0:01:26.7]} 18... Qxb3 {[%clk 0:01:13.1]} 19. axb3
{[%clk 0:01:26.7]} 19... Ng4 {[%clk 0:00:59.8]} 20. Nd5 {[%clk 0:01:22.4]} 20...
Bc5 {[%clk 0:00:50.2]} 21. Rd2 {[%clk 0:01:13]} 21... Rad8 {[%clk 0:00:42.1]}
22. Rad1 {[%clk 0:01:05]} 22... Nb4 {[%clk 0:00:10.3]} 23. Nxb4 {[%clk
0:00:52.3]} 23... Bxb4 {[%clk 0:00:09.1]} 24. Rxd8 {[%clk 0:00:51]} 24... Rxd8
{[%clk 0:00:07.6]} 25. Rxd8+ {[%clk 0:00:49.9]} 1-0

[Event "Betsys MČR v online bleskovém šachu 2021"]
[Site "Chess.com"]
[Date "2021.04.17"]
[Round "6"]
[White "Rozmetal"]
[Black "fortale"]
[Result "1/2-1/2"]
[WhiteElo "2152"]
[BlackElo "2331"]
[TimeControl "180+1"]
[EndTime "9:56:31 PDT"]
[Termination "Remíza opakováním pozice"]

1. e4 {[%clk 0:03:00.9]} 1... c5 {[%clk 0:02:59.3]} 2. Nf3 {[%clk 0:02:59.4]}
2... d6 {[%clk 0:02:59.6]} 3. d4 {[%clk 0:02:59.3]} 3... cxd4 {[%clk 0:03:00.5]}
4. Nxd4 {[%clk 0:02:58.8]} 4... Nf6 {[%clk 0:03:00.7]} 5. Nc3 {[%clk 0:02:59.2]}
5... g6 {[%clk 0:03:01]} 6. Bc4 {[%clk 0:02:57.9]} 6... Bg7 {[%clk 0:03:01.1]}
7. O-O {[%clk 0:02:58.3]} 7... O-O {[%clk 0:03:01.2]} 8. Re1 {[%clk 0:02:58.6]}
8... Nc6 {[%clk 0:03:01.5]} 9. Bb3 {[%clk 0:02:58.6]} 9... Qb6 {[%clk
0:02:55.1]} 10. Nxc6 {[%clk 0:02:55.1]} 10... bxc6 {[%clk 0:02:54.9]} 11. Bg5
{[%clk 0:02:53.6]} 11... Be6 {[%clk 0:02:51.8]} 12. Qd2 {[%clk 0:02:52.3]} 12...
Rfe8 {[%clk 0:02:42.8]} 13. Rad1 {[%clk 0:02:40.1]} 13... Rad8 {[%clk
0:02:22.6]} 14. Bh6 {[%clk 0:02:32.5]} 14... Bxh6 {[%clk 0:02:20.3]} 15. Qxh6
{[%clk 0:02:31.1]} 15... Qxf2+ {[%clk 0:02:20.1]} 16. Kxf2 {[%clk 0:02:29.2]}
16... Ng4+ {[%clk 0:02:20.4]} 17. Kg3 {[%clk 0:02:15.7]} 17... Nxh6 {[%clk
0:02:21.3]} 18. Bxe6 {[%clk 0:01:56.1]} 18... fxe6 {[%clk 0:02:20.8]} 19. Rd4
{[%clk 0:01:56.4]} 19... Rb8 {[%clk 0:02:18.9]} 20. b3 {[%clk 0:01:55.5]} 20...
Nf7 {[%clk 0:02:15.4]} 21. Ra4 {[%clk 0:01:53.5]} 21... Rb7 {[%clk 0:02:15.2]}
22. Ne2 {[%clk 0:01:52.3]} 22... e5 {[%clk 0:02:09.2]} 23. c4 {[%clk 0:01:45.4]}
23... Ng5 {[%clk 0:02:08]} 24. Nc3 {[%clk 0:01:44.1]} 24... Ne6 {[%clk
0:02:04.5]} 25. Ra6 {[%clk 0:01:42.9]} 25... Nd4 {[%clk 0:02:01.8]} 26. Ne2
{[%clk 0:01:31.3]} 26... Nxe2+ {[%clk 0:01:49.5]} 27. Rxe2 {[%clk 0:01:30.5]}
27... Rc7 {[%clk 0:01:49.7]} 28. Rd2 {[%clk 0:01:22.8]} 28... Kf7 {[%clk
0:01:47.8]} 29. Kf3 {[%clk 0:01:16.6]} 29... Ke6 {[%clk 0:01:47.9]} 30. Ke3
{[%clk 0:01:16.6]} 30... Rb8 {[%clk 0:01:43.7]} 31. Rd1 {[%clk 0:01:14.7]} 31...
Rb6 {[%clk 0:01:41.6]} 32. Ra5 {[%clk 0:01:13.7]} 32... a6 {[%clk 0:01:37.9]}
33. c5 {[%clk 0:01:11]} 33... dxc5 {[%clk 0:01:36.7]} 34. Rxc5 {[%clk
0:01:10.3]} 34... Rb5 {[%clk 0:01:35.5]} 35. Rdc1 {[%clk 0:01:06.5]} 35... Rxc5
{[%clk 0:01:25.5]} 36. Rxc5 {[%clk 0:01:05.7]} 36... Kd6 {[%clk 0:01:25.9]} 37.
Ra5 {[%clk 0:01:05.3]} 37... Ra7 {[%clk 0:01:26]} 38. Kd3 {[%clk 0:01:04]} 38...
Ra8 {[%clk 0:01:21.2]} 39. Kc4 {[%clk 0:01:03.3]} 39... Rf8 {[%clk 0:01:07.1]}
40. Rxa6 {[%clk 0:00:59.6]} 40... Rf2 {[%clk 0:01:06.7]} 41. b4 {[%clk
0:00:57.8]} 41... Kd7 {[%clk 0:00:57.2]} 42. Ra7+ {[%clk 0:00:56.5]} 42... Kd6
{[%clk 0:00:57.6]} 43. Ra6 {[%clk 0:00:56]} 43... Kd7 {[%clk 0:00:58]} 44. Ra7+
{[%clk 0:00:45.1]} 44... Kd6 {[%clk 0:00:55.8]} 45. Ra6 {[%clk 0:00:44.8]}
1/2-1/2

[Event "Betsys MČR v online bleskovém šachu 2021"]
[Site "Chess.com"]
[Date "2021.04.17"]
[Round "6"]
[White "TrickyPeat"]
[Black "DiscoSTU666"]
[Result "1-0"]
[WhiteElo "2204"]
[BlackElo "1888"]
[TimeControl "180+1"]
[EndTime "9:56:31 PDT"]
[Termination "Uživatel TrickyPeat zvítězil po vzdání soupeře"]

1. e4 {[%clk 0:02:59.2]} 1... c5 {[%clk 0:02:59.5]} 2. Nf3 {[%clk 0:02:58.5]}
2... d6 {[%clk 0:02:59.3]} 3. d3 {[%clk 0:02:58.3]} 3... Nc6 {[%clk 0:02:57.4]}
4. Nbd2 {[%clk 0:02:58.2]} 4... g6 {[%clk 0:02:57.9]} 5. g3 {[%clk 0:02:58.1]}
5... Bg7 {[%clk 0:02:58.4]} 6. Bg2 {[%clk 0:02:58.2]} 6... e6 {[%clk 0:02:59.1]}
7. O-O {[%clk 0:02:57.8]} 7... Nge7 {[%clk 0:03:00]} 8. Re1 {[%clk 0:02:57]}
8... O-O {[%clk 0:02:58.9]} 9. a4 {[%clk 0:02:56.2]} 9... a6 {[%clk 0:02:57.3]}
10. h4 {[%clk 0:02:55.4]} 10... Rb8 {[%clk 0:02:56]} 11. h5 {[%clk 0:02:54.7]}
11... b5 {[%clk 0:02:49.6]} 12. axb5 {[%clk 0:02:53.7]} 12... axb5 {[%clk
0:02:48.6]} 13. hxg6 {[%clk 0:02:48.3]} 13... fxg6 {[%clk 0:02:44.2]} 14. Ng5
{[%clk 0:02:35.7]} 14... Bd4 {[%clk 0:02:21.2]} 15. Ndf3 {[%clk 0:02:27.8]}
15... Bg7 {[%clk 0:02:04]} 16. c3 {[%clk 0:02:23.8]} 16... e5 {[%clk 0:01:55.2]}
17. Qb3+ {[%clk 0:02:19.8]} 17... Kh8 {[%clk 0:01:47.2]} 18. Nf7+ {[%clk
0:02:16.7]} 18... Rxf7 {[%clk 0:01:47.2]} 19. Qxf7 {[%clk 0:02:16.2]} 19... Bg4
{[%clk 0:01:45.3]} 20. Ng5 {[%clk 0:02:11.7]} 20... Qd7 {[%clk 0:01:37.6]} 21.
Qb3 {[%clk 0:01:58.7]} 21... h6 {[%clk 0:01:22.5]} 22. Nf3 {[%clk 0:01:23.9]}
22... Rf8 {[%clk 0:01:21]} 23. Nh2 {[%clk 0:01:21.6]} 23... Bh3 {[%clk
0:01:19.4]} 24. Qxb5 {[%clk 0:01:19.2]} 24... Bxg2 {[%clk 0:00:57.9]} 25. Kxg2
{[%clk 0:01:18]} 25... g5 {[%clk 0:00:58.8]} 26. Ra6 {[%clk 0:01:12.6]} 26...
Qc8 {[%clk 0:00:40.3]} 27. Be3 {[%clk 0:01:01.3]} 27... Nb8 {[%clk 0:00:25.4]}
28. Ra7 {[%clk 0:00:57.6]} 28... Ng6 {[%clk 0:00:21.5]} 29. Qb7 {[%clk
0:00:54.2]} 29... Qxb7 {[%clk 0:00:18.3]} 30. Rxb7 {[%clk 0:00:54]} 30... Nc6
{[%clk 0:00:19.2]} 31. Ra1 {[%clk 0:00:52.6]} 1-0

[Event "Betsys MČR v online bleskovém šachu 2021"]
[Site "Chess.com"]
[Date "2021.04.17"]
[Round "6"]
[White "Mikkes33"]
[Black "Federer302"]
[Result "0-1"]
[WhiteElo "1288"]
[BlackElo "1583"]
[TimeControl "180+1"]
[EndTime "9:56:32 PDT"]
[Termination "Uživatel Federer302 zvítězil na čas"]

1. e4 {[%clk 0:02:58.9]} 1... c5 {[%clk 0:02:59.2]} 2. Nf3 {[%clk 0:02:57.8]}
2... g6 {[%clk 0:02:58.8]} 3. d4 {[%clk 0:02:55.2]} 3... cxd4 {[%clk 0:02:58.8]}
4. Nxd4 {[%clk 0:02:55.4]} 4... Bg7 {[%clk 0:02:59]} 5. Be3 {[%clk 0:02:53.3]}
5... Nc6 {[%clk 0:02:58.9]} 6. Nc3 {[%clk 0:02:52.4]} 6... Nf6 {[%clk
0:02:58.5]} 7. f3 {[%clk 0:02:51.6]} 7... O-O {[%clk 0:02:57.6]} 8. Qd2 {[%clk
0:02:50.7]} 8... d5 {[%clk 0:02:56.9]} 9. exd5 {[%clk 0:02:42.4]} 9... Nxd5
{[%clk 0:02:56.6]} 10. Nxd5 {[%clk 0:02:41.9]} 10... Qxd5 {[%clk 0:02:56]} 11.
Nxc6 {[%clk 0:02:32.6]} 11... bxc6 {[%clk 0:02:55.7]} 12. c3 {[%clk 0:02:30.4]}
12... Qxd2+ {[%clk 0:02:51.5]} 13. Bxd2 {[%clk 0:02:24.8]} 13... Rb8 {[%clk
0:02:51.4]} 14. O-O-O {[%clk 0:02:22.1]} 14... Be6 {[%clk 0:02:48.7]} 15. b3
{[%clk 0:02:13.1]} 15... a5 {[%clk 0:02:43.6]} 16. Bf4 {[%clk 0:02:05.2]} 16...
Rb7 {[%clk 0:02:38]} 17. Ba6 {[%clk 0:01:55.8]} 17... Ra7 {[%clk 0:02:37.7]} 18.
Be2 {[%clk 0:01:45.1]} 18... Bxc3 {[%clk 0:02:37.2]} 19. Rd3 {[%clk 0:01:33.7]}
19... Bg7 {[%clk 0:02:33.6]} 20. Rhd1 {[%clk 0:01:32.5]} 20... a4 {[%clk
0:02:31.9]} 21. Rd8 {[%clk 0:01:21.7]} 21... axb3 {[%clk 0:02:25.7]} 22. Rxf8+
{[%clk 0:01:20.7]} 22... Bxf8 {[%clk 0:02:24.1]} 23. axb3 {[%clk 0:01:13]} 23...
Bxb3 {[%clk 0:01:58.5]} 24. Rd8 {[%clk 0:01:07.1]} 24... Kg7 {[%clk 0:01:54.7]}
25. Be5+ {[%clk 0:00:56]} 25... f6 {[%clk 0:01:53.8]} 26. Bd4 {[%clk 0:00:53.5]}
26... Ra2 {[%clk 0:01:46.2]} 27. Bf1 {[%clk 0:00:47]} 27... Kf7 {[%clk
0:01:34.9]} 28. Rb8 {[%clk 0:00:39.6]} 28... Bh6+ {[%clk 0:01:25.9]} 29. Kb1
{[%clk 0:00:38.3]} 29... Bd5 {[%clk 0:01:25.2]} 30. Rb7 {[%clk 0:00:28.7]} 30...
Ra3 {[%clk 0:01:12.1]} 31. Bc5 {[%clk 0:00:25.9]} 31... Rb3+ {[%clk 0:01:12]}
32. Ka1 {[%clk 0:00:20.6]} 32... Rxb7 {[%clk 0:01:10.7]} 0-1

[Event "Betsys MČR v online bleskovém šachu 2021"]
[Site "Chess.com"]
[Date "2021.04.17"]
[Round "6"]
[White "Skalicky"]
[Black "Sfreedom01"]
[Result "0-1"]
[WhiteElo "939"]
[BlackElo "1334"]
[TimeControl "180+1"]
[EndTime "9:56:32 PDT"]
[Termination "Uživatel Sfreedom01 zvítězil po vzdání soupeře"]

1. d4 {[%clk 0:03:00.9]} 1... g6 {[%clk 0:02:57.1]} 2. e4 {[%clk 0:02:59.9]}
2... e6 {[%clk 0:02:56.7]} 3. Nc3 {[%clk 0:02:57.2]} 3... Bg7 {[%clk 0:02:56.7]}
4. Nf3 {[%clk 0:02:56.2]} 4... c6 {[%clk 0:02:57]} 5. Be2 {[%clk 0:02:54.1]}
5... d5 {[%clk 0:02:56.8]} 6. exd5 {[%clk 0:02:48]} 6... cxd5 {[%clk 0:02:56.5]}
7. O-O {[%clk 0:02:46.4]} 7... Ne7 {[%clk 0:02:52.9]} 8. Bg5 {[%clk 0:02:42.6]}
8... O-O {[%clk 0:02:51.1]} 9. Bxe7 {[%clk 0:02:39.9]} 9... Qxe7 {[%clk
0:02:50.7]} 10. Qd3 {[%clk 0:02:39.7]} 10... Nc6 {[%clk 0:02:49.6]} 11. Rfd1
{[%clk 0:02:34.4]} 11... b6 {[%clk 0:02:49.6]} 12. Rac1 {[%clk 0:02:30.6]} 12...
a5 {[%clk 0:02:49.7]} 13. a4 {[%clk 0:02:29.2]} 13... Ba6 {[%clk 0:02:48.7]} 14.
Qd2 {[%clk 0:02:22.1]} 14... Bxe2 {[%clk 0:02:48.1]} 15. Nxe2 {[%clk 0:02:17.2]}
15... Rfc8 {[%clk 0:02:42.2]} 16. Ng3 {[%clk 0:02:13.6]} 16... Nb4 {[%clk
0:02:37.4]} 17. c3 {[%clk 0:02:01.3]} 17... Nc6 {[%clk 0:02:32.1]} 18. Re1
{[%clk 0:01:54.5]} 18... Re8 {[%clk 0:02:31.8]} 19. Ne5 {[%clk 0:01:52.8]} 19...
Nxe5 {[%clk 0:02:31.3]} 20. dxe5 {[%clk 0:01:52.2]} 20... Rac8 {[%clk
0:02:30.7]} 21. Re3 {[%clk 0:01:45.6]} 21... Rc4 {[%clk 0:02:27.6]} 22. Rf3
{[%clk 0:01:35.8]} 22... Bxe5 {[%clk 0:02:17.4]} 23. Qh6 {[%clk 0:01:25.8]}
23... Bg7 {[%clk 0:02:17]} 24. Qf4 {[%clk 0:01:18.7]} 24... Rxf4 {[%clk
0:02:16]} 25. Rxf4 {[%clk 0:01:17.7]} 25... e5 {[%clk 0:02:15.7]} 26. Rf3 {[%clk
0:01:13.4]} 26... e4 {[%clk 0:02:15.6]} 27. Re3 {[%clk 0:01:12.6]} 27... Qd7
{[%clk 0:02:09.4]} 28. Rce1 {[%clk 0:01:10.5]} 28... Qxa4 {[%clk 0:02:06.6]} 29.
Ne2 {[%clk 0:01:01.6]} 29... Qc2 {[%clk 0:01:58.9]} 30. Rc1 {[%clk 0:00:58.1]}
30... Qxb2 {[%clk 0:01:53.3]} 31. Re1 {[%clk 0:00:54.3]} 31... Rc8 {[%clk
0:01:48.4]} 32. g3 {[%clk 0:00:45.3]} 32... Bxc3 {[%clk 0:01:44.9]} 33. Nxc3
{[%clk 0:00:43.1]} 33... Rxc3 {[%clk 0:01:44.9]} 34. Rxc3 {[%clk 0:00:42.8]}
34... Qxc3 {[%clk 0:01:45]} 35. Kf1 {[%clk 0:00:36.6]} 35... Qf3 {[%clk
0:01:43.3]} 36. Rb1 {[%clk 0:00:33.4]} 36... d4 {[%clk 0:01:39.8]} 37. Rxb6
{[%clk 0:00:31.5]} 37... d3 {[%clk 0:01:39.8]} 38. Rb8+ {[%clk 0:00:30.4]} 38...
Kg7 {[%clk 0:01:39.5]} 39. Ra8 {[%clk 0:00:29.7]} 39... d2 {[%clk 0:01:39.1]}
40. Rd8 {[%clk 0:00:20.6]} 40... Qd1+ {[%clk 0:01:35.1]} 41. Kg2 {[%clk
0:00:15.8]} 41... Qe1 {[%clk 0:01:35.1]} 42. Kh3 {[%clk 0:00:11.7]} 42... d1=Q
{[%clk 0:01:35]} 43. Rxd1 {[%clk 0:00:10.1]} 43... Qxd1 {[%clk 0:01:35.1]} 0-1

[Event "Betsys MČR v online bleskovém šachu 2021"]
[Site "Chess.com"]
[Date "2021.04.17"]
[Round "6"]
[White "FaceOfLightning"]
[Black "mravecuk"]
[Result "0-1"]
[WhiteElo "2000"]
[BlackElo "2265"]
[TimeControl "180+1"]
[EndTime "9:56:33 PDT"]
[Termination "Uživatel mravecuk zvítězil po vzdání soupeře"]

1. Nf3 {[%clk 0:03:00.9]} 1... d5 {[%clk 0:02:57.1]} 2. d4 {[%clk 0:02:59.7]}
2... e6 {[%clk 0:02:55.4]} 3. Bf4 {[%clk 0:02:58.9]} 3... Bd6 {[%clk 0:02:54.7]}
4. Bg3 {[%clk 0:02:58.5]} 4... c5 {[%clk 0:02:53.8]} 5. e3 {[%clk 0:02:57.8]}
5... Nc6 {[%clk 0:02:54.2]} 6. c3 {[%clk 0:02:56.9]} 6... Nge7 {[%clk
0:02:54.4]} 7. Bd3 {[%clk 0:02:55.4]} 7... c4 {[%clk 0:02:53.8]} 8. Bc2 {[%clk
0:02:54.1]} 8... f5 {[%clk 0:02:53.2]} 9. Nbd2 {[%clk 0:02:47.4]} 9... O-O
{[%clk 0:02:53]} 10. Ne5 {[%clk 0:02:46.5]} 10... Bxe5 {[%clk 0:02:52.7]} 11.
dxe5 {[%clk 0:02:45.4]} 11... b5 {[%clk 0:02:52.3]} 12. a3 {[%clk 0:02:42.5]}
12... Bd7 {[%clk 0:02:51]} 13. Nf3 {[%clk 0:02:41.9]} 13... a5 {[%clk
0:02:50.6]} 14. Nd4 {[%clk 0:02:28.8]} 14... Qb6 {[%clk 0:02:50.1]} 15. Qd2
{[%clk 0:02:27.2]} 15... b4 {[%clk 0:02:47.7]} 16. O-O {[%clk 0:02:17]} 16...
bxc3 {[%clk 0:02:35.9]} 17. bxc3 {[%clk 0:02:13.6]} 17... Rab8 {[%clk
0:02:35.5]} 18. Rfb1 {[%clk 0:02:12.2]} 18... Qc5 {[%clk 0:02:31.4]} 19. a4
{[%clk 0:01:46.4]} 19... h6 {[%clk 0:02:18.6]} 20. Rb5 {[%clk 0:01:45.3]} 20...
Rxb5 {[%clk 0:02:12.6]} 21. Nxb5 {[%clk 0:01:41.4]} 21... Rb8 {[%clk 0:02:04.3]}
22. Rb1 {[%clk 0:01:24.6]} 22... Nd8 {[%clk 0:01:43.8]} 23. Qd4 {[%clk
0:01:18.3]} 23... Qxd4 {[%clk 0:01:35]} 24. exd4 {[%clk 0:01:17.8]} 24... Bxb5
{[%clk 0:01:13.4]} 25. Rxb5 {[%clk 0:01:15.5]} 25... Rxb5 {[%clk 0:01:05.8]} 26.
axb5 {[%clk 0:01:15]} 26... Nc8 {[%clk 0:01:04.6]} 27. Bh4 {[%clk 0:01:12.3]}
27... g5 {[%clk 0:01:03.7]} 28. Bg3 {[%clk 0:01:04]} 28... f4 {[%clk 0:01:03.9]}
29. Ba4 {[%clk 0:00:41.8]} 29... Nb6 {[%clk 0:01:01.1]} 30. Bc2 {[%clk
0:00:40.5]} 30... fxg3 {[%clk 0:00:58.3]} 31. hxg3 {[%clk 0:00:40.1]} 31... a4
{[%clk 0:00:55]} 32. f4 {[%clk 0:00:37.6]} 32... a3 {[%clk 0:00:51.8]} 33. Bb1
{[%clk 0:00:37.8]} 33... Na4 {[%clk 0:00:51.3]} 0-1

[Event "Betsys MČR v online bleskovém šachu 2021"]
[Site "Chess.com"]
[Date "2021.04.17"]
[Round "6"]
[White "Tolja1"]
[Black "VojtaT"]
[Result "1-0"]
[WhiteElo "2040"]
[BlackElo "1734"]
[TimeControl "180+1"]
[EndTime "9:56:33 PDT"]
[Termination "Uživatel Tolja1 zvítězil po vzdání soupeře"]

1. Nf3 {[%clk 0:03:00.9]} 1... Nf6 {[%clk 0:02:56.3]} 2. c4 {[%clk 0:03:00.6]}
2... c6 {[%clk 0:02:55.3]} 3. Nc3 {[%clk 0:02:58.8]} 3... d5 {[%clk 0:02:51.9]}
4. e3 {[%clk 0:02:58.3]} 4... g6 {[%clk 0:02:49.5]} 5. d4 {[%clk 0:02:57.5]}
5... Bg7 {[%clk 0:02:48.8]} 6. Be2 {[%clk 0:02:57.6]} 6... O-O {[%clk
0:02:48.4]} 7. O-O {[%clk 0:02:57.1]} 7... Nbd7 {[%clk 0:02:36.5]} 8. cxd5
{[%clk 0:02:56.3]} 8... cxd5 {[%clk 0:02:36.9]} 9. Qb3 {[%clk 0:02:56.1]} 9...
Nb6 {[%clk 0:02:34.2]} 10. a4 {[%clk 0:02:55.7]} 10... e6 {[%clk 0:02:04.7]} 11.
a5 {[%clk 0:02:53.1]} 11... Nbd7 {[%clk 0:02:03.5]} 12. Bd2 {[%clk 0:02:46.1]}
12... b6 {[%clk 0:02:03.5]} 13. a6 {[%clk 0:02:29.3]} 13... Re8 {[%clk
0:01:51.8]} 14. Nb5 {[%clk 0:02:23.2]} 14... Nf8 {[%clk 0:01:42.2]} 15. Rfc1
{[%clk 0:02:18.3]} 15... Ne4 {[%clk 0:01:25.2]} 16. Bb4 {[%clk 0:02:12.2]} 16...
Bd7 {[%clk 0:01:00.6]} 17. Nc7 {[%clk 0:01:58.4]} 17... Rc8 {[%clk 0:01:00.5]}
18. Nxe8 {[%clk 0:01:55.1]} 18... Qxe8 {[%clk 0:01:01.4]} 19. Bf1 {[%clk
0:01:16.2]} 19... h6 {[%clk 0:00:54.7]} 20. Ne5 {[%clk 0:01:11.6]} 20... Bxe5
{[%clk 0:00:40.4]} 21. dxe5 {[%clk 0:01:11.1]} 21... Nh7 {[%clk 0:00:40.3]} 22.
Bd6 {[%clk 0:00:50.8]} 22... Qd8 {[%clk 0:00:27.9]} 23. f3 {[%clk 0:00:50.1]}
23... Nc5 {[%clk 0:00:19.6]} 24. Bxc5 {[%clk 0:00:47.1]} 24... Rxc5 {[%clk
0:00:20]} 25. Rxc5 {[%clk 0:00:45.9]} 25... bxc5 {[%clk 0:00:20.9]} 26. Qb7
{[%clk 0:00:39.4]} 1-0